Cogmind - Beta 16.1 @@@ ROGUE MODE // 2026.03.01 @ 19:00:29 Player: throbalt Result: Self-destructed Performance ------------- Evolutions (2) 1000 Regions Visited (3) 600 Robots Destroyed (60) 300 Value Destroyed (1524) 1524 Prototype IDs (0) 0 Alien Tech Used (0) 0 Bonus (42) 42 TOTAL SCORE: 3466 Bonus ------- High Alert Combat Kills 42 Cogmind --------- Core Integrity 392/550 Matter 53/300 Energy 100/100 System Corruption 0% Temperature Cool (0) Movement Treading (240) Ox1 Location -8/Materials Parts ------- > --- POWER (1) -------- (None) > --- PROPULSION (3) --- Light Treads > --- UTILITY (5) ------ Large Storage Unit Advanced Visual Processing Unit Transport Network Coupler System Shield > --- WEAPON (2) ------- Autogun > --- INVENTORY (15) --- Improved Ion Engine Light Treads Light Treads Melee Analysis Suite Melee Analysis Suite Heavy Assault Rifle Minigun Mining Laser Maul Peak State ------------ > --- POWER ------------ Improved Ion Engine > --- PROPULSION ------- Light Treads Light Treads Light Treads > --- UTILITY ---------- Large Storage Unit Transport Network Coupler Improved Light Armor Plating Hacking Suite System Shield > --- WEAPON ----------- Minigun Minigun > --- INVENTORY -------- Improved Ion Engine Light Treads Light Treads Light Treads Large Storage Unit Melee Analysis Suite Improved Light Armor Plating Heavy Assault Rifle Autogun EMP Blaster Rocket Launcher Rocket Launcher Mining Laser Hammer [Rating: 24] Favorites ----------- Power Ion Engine Engine Ion Engine Propulsion Light Treads Treads Light Treads Leg Aluminum Leg Utility Large Storage Unit Device ECM Suite Storage Large Storage Unit Processor Transport Network Coupler Hackware System Shield Protection Power Shielding Weapon Minigun Energy Gun Medium Laser Ballistic Gun Minigun Ballistic Cannon Light Cannon Launcher Grenade Launcher Special Weapon Mining Laser Impact Weapon Hammer Build | -11 -10 -9 -8 ------- Run | Yrd Mat Mat Mat Slots Evolved 4 | . . 2 2 Power . | . . . . Propulsion 1 | . . . 1 Utility 3 | . . 2 1 Weapon . | . . . . Parts Attached 55 | 7 14 22 12 Power 9 | 1 2 6 . Engine 9 | 1 2 6 . Core . | . . . . Reactor . | . . . . Propulsion 13 | 2 2 5 4 Treads 11 | . 2 5 4 Leg 2 | 2 . . . Wheel . | . . . . Hover . | . . . . Flight . | . . . . Utility 12 | 1 3 5 3 Device 1 | . . 1 . Storage 3 | 1 1 . 1 Processor 2 | . . 1 1 Hackware 2 | . . 2 . Protection 4 | . 2 1 1 Artifact . | . . . . Weapon 21 | 3 7 6 5 Energy Gun 2 | 2 . . . Energy Cannon . | . . . . Ballistic Gun 10 | 1 4 4 1 Ballistic Cannon 1 | . 1 . . Launcher 5 | . 1 1 3 Special Weapon 1 | . . 1 . Impact Weapon 2 | . 1 . 1 Slashing Weapon . | . . . . Piercing Weapon . | . . . . Special Melee Weapon . | . . . . Unidentified Prototypes . | . . . . Parts Lost 18 | . 1 6 11 Power 4 | . . 3 1 Propulsion 5 | . 1 1 3 Utility 3 | . . . 3 Weapon 6 | . . 2 4 Highest Loss Streak 11 | . 1 2 11 To Critical Strikes . | . . . . Average Backups 11 | 2 9 13 14 Power 1 | . 1 . 1 Propulsion 2 | 1 2 3 2 Utility 1 | . 1 2 3 Weapon 5 | . 4 6 6 Tool/Special . | . . . . Unused Backups 14 | . 1 8 5 Power 3 | . 1 2 . Propulsion 5 | . . 3 2 Utility 2 | . . . 2 Weapon 4 | . . 3 1 Tool/Special . | . . . . Average Slot Usage (%) 98 | . 98 99 98 Engine 12 | . 14 10 9 Treads 22 | . 21 21 26 Leg 2 | . 6 . . Storage 12 | . 14 11 9 Processor 5 | . . 11 9 Hackware 9 | . . 17 17 Protection 8 | . 12 2 8 Ballistic Gun 17 | . 21 16 10 Ballistic Cannon 1 | . 3 . . Impact Weapon 3 | . 2 4 5 Peak Build Rating 24 | 6 8 20 24 Average Rating 13 | 4 7 17 22 On Entrance 8 | . 6 8 18 Avg Prop Armor Cover (%) . | . . . . Naked Turns . | . . . . Heaviest Build 37 | 12 31 34 37 Greatest Support 60 | 20 40 40 60 Greatest Overweight (x) 1 | . . . 1 Average Overweight (x) . | . . . . Largest Inventory Capacity 15 | 8 15 15 15 Average Capacity 13 | 7 11 15 15 Most Carried 15 | 4 12 15 15 Average Carried 11 | 2 9 14 14 Final Capacity 15 | 8 15 15 15 Final Carried 15 | 4 12 15 9 Class Distribution -------------------- 56% | Mutant 29% | Scavenger-Mutant 14% | Hacker-Mutant Dominant Class ---------------- Mutant | -10/Materials Scavenger-Mutant | -9/Materials Scavenger-Mutant | -8/Materials Resources | -11 -10 -9 -8 ----------- Run | Yrd Mat Mat Mat Matter Collected 1778 | 163 410 1044 161 Remotely . | . . . . Salvage Created 1873 | . 469 1218 186 Parts 132 | . 36 81 15 Haulers Intercepted 2 | . 1 1 . Recyclers Shooed 1 | . . 1 . Parts Field Recycled . | . . . . Retrieved Matter . | . . . . Parts Self-Destructed . | . . . . Prevented . | . . . . Parts Restored . | . . . . Kills | -11 -10 -9 -8 ------- Run | Yrd Mat Mat Mat Combat Hostiles Destroyed 44 | . 13 27 4 Melee 1 | . . 1 . Guns 35 | . 12 21 2 AOE 8 | . 1 5 2 Classes Destroyed 9 | . 6 3 . Worker 3 | . 1 1 1 Builder 4 | . . 2 2 Hauler 2 | . 1 1 . Recycler 3 | . 1 2 . Operator 2 | . . 1 1 Watcher 2 | . 2 . . Swarmer 14 | . 6 8 . Grunt 20 | . 7 10 3 Sentry 10 | . . 9 1 Best Kill Streak 7 | . 3 7 5 Combat Bots Only 5 | . 3 5 3 Max Kills in Single Turn 3 | . 2 3 2 Gunslinging 1 | . . 1 . Exploded 3 | . 1 3 1 Melee 1 | . . 1 . Uniques/NPCs Destroyed . | . . . . Combat | -11 -10 -9 -8 -------- Run | Yrd Mat Mat Mat Hostile Shots Fired 375 | . 74 170 131 Missed 106 | . 18 44 44 Hits 269 | . 56 126 87 Melee 4 | . . 3 1 Projectile 265 | . 56 123 86 Critical Strikes 4 | . . 2 2 Damage Taken 3648 | . 631 1578 1439 Core 492 | . 123 211 158 Absorbed by Shields . | . . . . Redirected to Shielding 6 | . 6 . . Regen/Repaired (Parts) 18 | . 18 . . Core Remaining (%) 65 | 100 50 47 . Volleys Fired 163 | . 67 78 18 Largest 2 | . 2 2 2 Hottest 125 | . 70 125 66 Shots Fired 313 | . 131 147 35 Gun 275 | . 117 133 25 Cannon 10 | . 10 . . Launcher 24 | . 4 10 10 Special 4 | . . 4 . Kinetic 264 | . 106 133 25 Thermal 25 | . 21 4 . Explosive 22 | . 4 10 8 Electromagnetic 2 | . . . 2 Robot Hit Streak 18 | . 9 8 18 Robot Miss Streak 4 | . 4 4 2 Penetration Max . | . . . . Secondary Targets 5 | . 3 2 . Max Gunslinging Chain 1 | . 1 1 . Shots Hit Robots 196 | . 75 93 28 Core Hits 101 | . 33 51 17 Critical Kills 2 | . 1 1 . Critical Parts Destroyed 1 | . . 1 . Critical Strikes 4 | . 2 2 . Burn 1 | . 1 . . Destroy 3 | . 1 2 . Melee Attacks 67 | . 23 29 15 Impact 67 | . 23 29 15 Slashing . | . . . . Piercing . | . . . . Sneak Attacks 2 | . . 2 . Combat Hostiles . | . . . . Follow-up Attacks . | . . . . Damage Inflicted 4369 | . 932 2283 1154 Guns 2495 | . 647 1482 366 Cannons 60 | . 60 . . Explosions 1622 | . 211 623 788 Melee 178 | . . 178 . Ramming 14 | . 14 . . Kinetic 2430 | . 582 1482 366 Thermal 125 | . 125 . . Explosive 1515 | . 211 623 681 Electromagnetic 107 | . . . 107 Impact 178 | . . 178 . Slashing . | . . . . Piercing . | . . . . Highest Corruption . | . . . . Average Corruption . | . . . . Corruption Purged . | . . . . Corruption Blocked . | . . . . Overload Shots . | . . . . Overflow Damage 25 | . . 25 . Projectiles . | . . . . Explosions 25 | . . 25 . Melee . | . . . . Knockbacks 1 | . . 1 . Impact 1 | . . 1 . Kinetic . | . . . . Secondary . | . . . . Self-Inflicted Damage 123 | . 35 88 . Shots 6 | . 2 4 . Rammed 1 | . 1 . . Targets Rammed 3 | . 3 . . Kicked 2 | . 2 . . Crushed . | . . . . Highest Temperature 240 | . 240 62 42 Average Temperature 34 | . 71 11 11 Received Heat Transfer 933 | . 228 444 261 Siege Activations . | . . . . Martial Activations . | . . . . Shielding Activations . | . . . . Robots Disrupted . | . . . . Combat Hostiles . | . . . . Robots Corrupted . | . . . . Combat Hostiles . | . . . . Parts Fried . | . . . . Impact Corruptions . | . . . . Robots Melted . | . . . . Combat Hostiles . | . . . . Parts Melted 1 | . 1 . . Heat Transferred 444 | . 444 . . Parts Sabotaged . | . . . . Parts Stolen . | . . . . Parts Stripped . | . . . . Power Chain Reactions . | . . . . Alert | -11 -10 -9 -8 ------- Run | Yrd Mat Mat Mat Maximum Alert Level 2 | . . 2 1 Low Security (%) 73 | 100 100 40 82 Level 1 17 | . . 37 17 Level 2 8 | . . 22 . Level 3 . | . . . . Level 4 . | . . . . Level 5 . | . . . . High Security . | . . . . Max Security . | . . . . Peak Influence 477 | . 115 477 219 Initial 201 | . . . 201 Average 126 | . 24 236 166 Influence Increases 1595 | . 425 963 207 Destroy 0b10 Robot/C 880 | . 260 540 80 Destroy 0b10 Robot/NC 80 | . 25 35 20 Destroy Leader 218 | . 56 142 20 Successful Hack 59 | . 10 49 . Disable Machine 120 | . 15 90 15 Destroy Structure 193 | . 44 77 72 Lose Combat Pursuer 45 | . 15 30 . Influence Decreases 1527 | . 425 486 616 Entered New Map 276 | . . . 276 Time Decay 1071 | . 415 426 230 Lost Part 180 | . 10 60 110 Squads Dispatched 11 | . 5 3 3 Investigation 3 | . 3 . . Extermination . | . . . . Reinforcement 8 | . 2 3 3 Assault . | . . . . Garrison . | . . . . Intercept . | . . . . Searches Triggered . | . . . . Construction Impeded . | . . . . Haulers Reinforced . | . . . . Active Scanning Responses . | . . . . Cargo Convoy Interrupts . | . . . . Stealth | -11 -10 -9 -8 --------- Run | Yrd Mat Mat Mat Distress Signals 6 | . 3 2 1 Communications Jammed . | . . . . Distress Signals . | . . . . Times Spotted 78 | . 24 41 13 Peak Tracking Total 8 | . 4 5 8 Tactical Retreats 2 | . 1 1 . Traps | -11 -10 -9 -8 ------- Run | Yrd Mat Mat Mat Traps Triggered 3 | . 3 . . Indirectly . | . . . . Trap Hack Attempts . | . . . . Triggered . | . . . . Disarmed 13 | . 6 7 . Reprogrammed . | . . . . Reused . | . . . . Traps Extracted . | . . . . Installed . | . . . . Triggered . | . . . . Machines | -11 -10 -9 -8 ---------- Run | Yrd Mat Mat Mat Machines Disabled 8 | . 1 6 1 Max in Single Turn 2 | . 1 2 1 Machines Repaired . | . . . . Machines Dismantled . | . . . . Machines Sabotaged . | . . . . Overloaded Fab Kills . | . . . . Hacking | -11 -10 -9 -8 --------- Run | Yrd Mat Mat Mat Machines Accessed 16 | . 7 9 . Terminals 13 | . 5 8 . Fabricators . | . . . . Repair Stations 1 | . 1 . . Recycling Units 1 | . 1 . . Scanalyzers 1 | . . 1 . Garrison Access . | . . . . Total Hacks 56 | . 15 41 . Successful 27 | . 9 18 . Failed 29 | . 6 23 . Catastrophic 3 | . . 3 . Database Lockouts . | . . . . Manual 26 | . 2 24 . Terminals 46 | . 9 37 . Fabricators . | . . . . Repair Stations 2 | . 2 . . Recycling Units 4 | . 4 . . Scanalyzers 4 | . . 4 . Garrison Access . | . . . . Terminal Hacks 19 | . 4 15 . Robot Analysis 1 | . 1 . . Branch Access Points 1 | . . 1 . Emergency Access Points 1 | . . 1 . Locate Traps 4 | . . 4 . Disarm Traps 3 | . 1 2 . Security Status 1 | . . 1 . Patrol Status 1 | . . 1 . Recall Investigation 1 | . 1 . . Recall Reinforcements 1 | . . 1 . Hauler Manifests 1 | . . 1 . Registered Components 2 | . 1 1 . Zone Layout 2 | . . 2 . Fabricator Hacks . | . . . . Repair Station Hacks 2 | . 2 . . Scan Component 1 | . 1 . . Repair 1 | . 1 . . Recycling Unit Hacks 3 | . 3 . . Recycle Component 1 | . 1 . . Process 1 | . 1 . . Report Inventory 1 | . 1 . . Scanalyzer 3 | . . 3 . Insert Component 1 | . . 1 . Analyze 1 | . . 1 . Retrieve Study 1 | . . 1 . Garrison Access Hacks . | . . . . Unauthorized Hacks . | . . . . Terminals . | . . . . Fabricators . | . . . . Repair Stations . | . . . . Recycling Units . | . . . . Scanalyzers . | . . . . Garrison Access . | . . . . Data Cores Recovered . | . . . . Used . | . . . . Hacking Detections 12 | . 5 7 . Full Trace Events . | . . . . Feedback Events . | . . . . Feedback Blocked . | . . . . Robot Schematics Acquired . | . . . . Robots Built . | . . . . Authchips . | . . . . Time . | . . . . Total Robot Build Rating . | . . . . Part Schematics Acquired 1 | . . 1 . Parts Built . | . . . . Authchips . | . . . . Time . | . . . . Total Part Build Rating . | . . . . Part Studies Acquired 1 | . . 1 . Parts Repaired 1 | . 1 . . Time 26 | . 26 . . Parts Recycled 1 | . 1 . . Recycled Matter 5 | . 5 . . Retrieved Matter . | . . . . Retrieved Components . | . . . . Parts Scanalyzed 1 | . . 1 . Part Schematics Acquired 1 | . . 1 . Parts Damaged . | . . . . Bothacking | -11 -10 -9 -8 ------------ Run | Yrd Mat Mat Mat Used RIF Installer . | . . . . Robots Hacked . | . . . . Non-combat . | . . . . Combat . | . . . . Robot Hacks Applied . | . . . . Relay Couplers Released . | . . . . Fabnet Peak Effective % . | . . . . Robots Rewired . | . . . . Allies Hacked . | . . . . Hacks Repelled . | . . . . Allies | -11 -10 -9 -8 -------- Run | Yrd Mat Mat Mat Total Allies . | . . . . Largest Group . | . . . . Highest-Rated Group . | . . . . Highest-Rated Ally . | . . . . Total Orders . | . . . . Ally Attacks . | . . . . Total Damage . | . . . . Kills . | . . . . Allies Corrupted . | . . . . Allies Melted . | . . . . Intel | -11 -10 -9 -8 ------- Run | Yrd Mat Mat Mat Active Infowar (turns) 2041 | . . 1549 492 Optics 13 | . . . 13 T.N.C. 2041 | . . 1549 492 ECM 184 | . . 184 . Robot Analysis Total 1 | . 1 . . Derelict Logs Recovered . | . . . . Drone Launches . | . . . . Drone Recoveries . | . . . . Exploration | -11 -10 -9 -8 ------------- Run | Yrd Mat Mat Mat Turns Passed 3877 | 64 1772 1549 492 Spaces Moved 1850 | 51 892 707 200 Core 15 | 15 . . . Treads 1614 | . 707 707 200 Legs 221 | 36 185 . . Wheels . | . . . . Hover . | . . . . Flight . | . . . . Fastest Speed 50 | 50 120 160 160 Average Speed 154 | 99 151 160 160 Slowest Speed 240 | 120 160 160 240 Overloaded Moves . | . . . . Propulsion Burnouts . | . . . . Robots Hopped . | . . . . Potential Cave-ins . | . . . . Cave-ins Triggered . | . . . . Exploration Rate (%) 44 | 3 89 64 22 Regions Visited 3 Branch Regions . Pre-discovered Areas . | . . . . Known Exits Taken . | . . . . Unknown Exits Taken 3 | 1 1 1 . Scrap Searched . | . . . . Spaces Dug 51 | . 16 21 14 Terrain Destroyed 215 | . 43 84 88 Melee 47 | . 16 17 14 Projectile 4 | . . 4 . AOE 164 | . 27 63 74 Terrain Rammed . | . . . . Walls Destroyed . | . . . . Machines Disabled . | . . . . Actions | -11 -10 -9 -8 --------- Run | Yrd Mat Mat Mat Total 2470 | 61 1157 944 308 Wait 217 | . 129 38 50 Move 1847 | 50 891 706 200 Hop . | . . . . Pick Up 46 | 4 15 24 3 Fast Attach 9 | 6 1 2 . Attach 17 | . 1 8 8 Detach 1 | . . 1 . Swap 63 | 1 16 36 10 Drop 37 | . 11 22 4 Fire 163 | . 67 78 18 Melee 67 | . 23 29 15 Ram . | . . . . Kick 2 | . 2 . . Crush 1 | . 1 . . Escape Stasis . | . . . . Rewire . | . . . . Trap . | . . . . Miscellaneous . | . . . . Route ------- -11/Scrapyard -10/Materials (discovered 6 exits: *Mat x3 / [*Min x2] / [*Sub]) -9/Materials (discovered 4 exits: [*Mat x3] / *Min) -8/Materials (discovered 1 exit: [*Sto]) History --------- Turn | Location | Event 12 | -11/Scrapyard | Discovered new exit (range 16) 65 | -11/Scrapyard | Entered Materials 313 | -10/Materials | Build established: Mutant 564 | -10/Materials | Discovered new exit (range 16) 770 | -10/Materials | Discovered new exit (range 16) 917 | -10/Materials | Discovered new exit (range 11) 1026 | -10/Materials | Discovered new exit (range 4) 1322 | -10/Materials | Discovered new exit (range 7) 1391 | -10/Materials | Discovered new exit (range 14) 1476 | -10/Materials | Repaired Aluminum Leg 1837 | -10/Materials | Entered another Materials area 1837 | -9/Materials | Evolved 2 slots: Utility x2 2254 | -9/Materials | Discovered new exit (range 3) 2402 | -9/Materials | Discovered new exit (range 20) 2493 | -9/Materials | Build established: Hacker-Mutant 2816 | -9/Materials | Discovered new exit (range 13) 3017 | -9/Materials | Build established: Scavenger-Mutant 3045 | -9/Materials | Discovered new exit (range 16) 3045 | -9/Materials | Identified exit to Mines 3380 | -9/Materials | Core integrity fell below 50% 3386 | -9/Materials | Entered another Materials area 3386 | -8/Materials | Evolved 2 slots: Propulsion x1, Utility x1 3729 | -8/Materials | Discovered new exit (range 10) 3878 | -8/Materials | Self-destructed Last Messages --------------- Hacking Suite destroyed. Critical hit (Blast). K-01 Serf collects debris. A-02 Transporter destroyed. K-01 Serf collects debris. The unstable cave ceiling collapses. K-01 Serf collects debris. Acquired 32 matter. Acquired 4 matter. Imp. Light Armor Plating destroyed. Lgt. Treads destroyed. EMP Blaster destroyed. Lgt. Treads destroyed. Imp. Ion Engine destroyed. K-01 Serf destroyed. Terminal disabled. B-36 Bruiser destroyed. K-01 Serf collects debris. Rocket Launcher destroyed. Imp. Light Armor Plating destroyed. Map ----- +----------------------------------------------------+ | #??# #???????????# ????????????????????????? | | #??# #?????????? ##??????????????????????? | | #??# #?????????# #??????????????????????? | | ##?# #?????????# #??????????????????????? | | ##?# ?????????? ##?????????????????????? | | ##?# ###########? ##????????????????????? | | #?# # #? #????????????????????? | | #?# a# #?# #????????????????????? | | < #?# # #??# ##???????????????????? | | #?# # ### k ????????????????????? | | #?# ###/########## # #????????????????????? | | +##### ##???????????????????? | | # #???????????????????? | | # H ????????????????????? | | """ + ###+####### #?????????????????????? | | """ # #?????????# xx#??????????????????????? | | """ # #?????????# g #??????????????????????? | | # #?????????# g #??????????????????????? | | ###### #?????????# #??????? ?#????????????? | | ?????# #?????????# k #?????? #????????????? | | ?????# #?????????# ##???? #????????????? | | ?????# #?????????# #??"" #????????????? | | ?????# #?????????# =!=#?"" #????????????? | | ?????# #?????????# ! =# #????????????? | | ?????# #?????????# *=* ##??????????????? | | ?????# #?????????# / @ #??????????????? | | ?????# #?????????# !%% g #??????????????? | | ?????? a#?????????# * g ; ????????? | | ?????? ?????????####;#; # #?????? | | ?????? ?????????????#### #???? ! #?????? | | ??????????????????????????### # ##??????????????? | | ?????????????????????????????##? #???????????????? | | ?????????????????????????????????#???????????????? | | ?????????????????????????????????????????????????? | | ?????????????????????????????????????????????????? | | ?????????????????????????????????????????????????? | | ?????????????????????????????????????????????????? | | ?????????????????????????????????????????????????? | | ?????????????????????????????????????????????????? | | ?????????????????????????????????????????????????? | | ?????????????????????????????????????????????????? | | ?????????????????????????????????????????????????? | | ?????????????????????????????????????????????????? | | ?????????????????????????????????????????????????? | | ?????????????????????????????????????????????????? | | ?????????????????????????????????????????????????? | | ?????????????????????????????????????????????????? | | ?????????????????????????????????????????????????? | | ?????????????????????????????????????????????????? | | | +----------------------------------------------------+ Best States ------------- Heat Dissipation 31 Energy Generation 12 Energy Capacity 265 Matter Stores 300 Matter Capacity 300 Sight Range 20 Terrain Scan Density 10 ECM Strength 1 Armor Coverage 150 Power Shielding 33 Evasion (%) 55 Recoil Reduction 3 Offensive Hacking 10 Defensive Hacking 10 Item Schematics ----------------- Aluminum Leg | -9/Materials | Scanalyzed Robot Schematics ------------------ None Fabricated ------------ Nothing Repaired ---------- Aluminum Leg | 80% | -10/Materials Studied --------- Aluminum Leg | -9/Materials | Hacked Alien Tech Used ----------------- None Achievements -------------- Part-time Excavator Challenges ------------ None Game ------ Seed LayeredReactiveInverter Manual? 0 Play Time 00:52:41 Cumulative 25.0 hours Start 2026.03.01 @ 18:09:45 End 2026.03.01 @ 19:00:29 Sessions 1 Manual Loads 0 Difficulty Rogue Special Mode None Game No. 25 Rogue 23 Adventurer 0 Explorer 2 Win Type - Total 0 Types 0/0/0/0/0/0/0/0/0/0 Lore% 17 Gallery% 21 Achievement% 17 Wizard Run 0 Options --------- Layout 1 ASCII 0 Keyboard 1 Movement Vi Keybinds 0 Fullscreen 1 Font 24/Smallcaps Map View 50x35 Zoom Use 0% Tactical HUD 0 Map Filters NONE Filters NONE Steam 1 RUN: 23b4d43e-f327-4c5c-a8ed-f8498d682f24